bitfinex/quotes_BTCUSD_20230113
["timestamp","ask_amount","ask_price","bid_price","bid_amount"]
[1673621518976,0.66186325,19045.0,19043.0,6e-05]
[1673621519742,0.1,19044.0,19043.0,6e-05]
[1673621519971,0.15,19045.0,19043.0,6e-05]
[1673621520227,0.15,19045.0,19043.0,0.05984615]
[1673621520981,0.15,19045.0,19043.0,0.21036494]
[1673621521244,0.07739,19044.0,19043.0,0.18595]
[1673621521483,0.07739,19044.0,19043.0,6e-05]
[1673621522466,0.21099294,19044.0,19043.0,6e-05]
[1673621522708,1.81434223,19044.0,19043.0,6e-05]
[1673621522958,1.37739286,19044.0,19043.0,6e-05]
[1673621523210,0.41586,19043.0,19039.0,0.00019]
[1673621523460,0.75890294,19042.0,19039.0,0.00019]
[1673621523697,0.75035,19041.0,19039.0,0.00019]
[1673621523951,0.3,19040.0,19039.0,0.00019]
[1673621524209,0.46825,19040.0,19039.0,0.00019]
[1673621524460,0.52955372,19040.0,19039.0,0.00019]
[1673621524719,0.62955372,19040.0,19039.0,0.00019]
[1673621524966,0.46825,19040.0,19037.0,0.00233434]
[1673621525211,0.16825,19039.0,19037.0,0.00233434]
[1673621525454,0.3,19039.0,19037.0,0.00233434]
[1673621525715,0.16825,19038.0,19037.0,0.00233434]
[1673621525969,0.92715294,19038.0,19037.0,0.00233434]
[1673621526216,0.79355,19038.0,19037.0,0.00233434]
[1673621526473,1.09155294,19038.0,19031.0,0.90446094]
[1673621526727,1.09155294,19038.0,19029.0,0.1]
[1673621526728,0.1649,19035.0,19029.0,0.1]
[1673621526975,0.1649,19035.0,19033.0,0.00019]
[1673621526976,0.62715294,19034.0,19033.0,0.00019]
[1673621527243,0.49355,19034.0,19033.0,0.00019]
[1673621527468,0.79355,19034.0,19033.0,0.00019]
[1673621527756,0.52105372,19034.0,19033.0,0.30311494]
[1673621527982,0.15,19035.0,19033.0,0.87471696]
[1673621528235,0.15,19035.0,19034.0,0.328007]
[1673621528498,0.15,19035.0,19034.0,0.21030494]
[1673621528749,0.16439,19041.0,19034.0,0.328007]
[1673621528750,0.68000393,19040.0,19034.0,0.328007]
[1673621529015,0.55134461,19040.0,19035.0,0.67114664]
[1673621529275,0.58145385,19040.0,19036.0,0.21030494]
[1673621529552,0.65467359,19039.0,19036.0,0.31030494]
[1673621529822,0.30185294,19038.0,19033.0,0.43037534]
[1673621530132,0.30185294,19038.0,19033.0,0.00233434]
[1673621530133,0.45040294,19037.0,19033.0,0.00233434]
[1673621530334,0.48505,19036.0,19033.0,0.00233434]
[1673621530576,0.3,19035.0,19033.0,0.66247947]
[1673621530802,0.16825,19034.0,19033.0,0.72872742]
[1673621531047,0.3,19035.0,19034.0,0.6550771]
[1673621531366,0.15,19037.0,19034.0,0.66267702]
[1673621531567,0.15,19037.0,19034.0,0.87298196]
[1673621532061,0.15,19037.0,19034.0,0.66267702]
[1673621532340,0.82744244,19037.0,19034.0,0.77198226]
[1673621532591,0.82744244,19037.0,19035.0,0.58270187]
[1673621532839,0.15,19037.0,19035.0,0.79300681]
[1673621533098,0.15,19037.0,19035.0,0.58270187]
[1673621533356,0.69044563,19036.0,19033.0,0.00233434]
[1673621533597,0.61765294,19035.0,19033.0,0.00233434]
[1673621533855,0.0085,19034.0,19033.0,0.00233434]
[1673621534106,0.49355,19034.0,19033.0,0.00233434]
[1673621534353,0.49355,19034.0,19033.0,3.4e-07]
[1673621534354,0.65885,19034.0,19033.0,3.4e-07]
[1673621534614,0.00061238,19032.0,19029.0,0.00019]
[1673621534860,0.44940294,19031.0,19029.0,0.00019]
[1673621535111,0.79355,19030.0,19029.0,0.00019]
[1673621535355,1.58710899,19030.0,19029.0,0.00019]
[1673621535589,0.77810372,19030.0,19029.0,0.00019]
[1673621535832,0.4168,19029.0,19028.0,3.79093697]
[1673621536080,0.4168,19029.0,19028.0,2.93767797]
[1673621536081,0.3253,19029.0,19028.0,2.93767797]
[1673621536328,0.79355,19029.0,19028.0,2.93767797]
[1673621536588,0.52955372,19029.0,19028.0,2.93767797]
[1673621536843,0.52105372,19029.0,19028.0,3.45963003]
[1673621537347,0.52105372,19029.0,19028.0,2.93767797]
[1673621537348,0.97045666,19029.0,19028.0,2.93767797]
[1673621537604,0.89275338,19029.0,19028.0,2.93767797]
[1673621537854,1.05805338,19029.0,19028.0,2.93767797]
[1673621538111,1.54203745,19029.0,19028.0,2.93767797]
[1673621538375,1.54203745,19029.0,19028.0,3.44198414]
[1673621538376,0.58445338,19029.0,19028.0,3.44198414]
[1673621538620,0.58445338,19029.0,19028.0,3.55634236]
[1673621538621,0.05489966,19029.0,19028.0,3.55634236]
[1673621539375,0.22314966,19029.0,19028.0,3.55634236]
[1673621539632,0.05489966,19029.0,19028.0,3.55634236]
[1673621539881,0.35489966,19029.0,19028.0,3.55634236]
[1673621540148,0.35489966,19029.0,19028.0,2.93767797]
[1673621540149,0.53164966,19029.0,19028.0,2.93767797]
[1673621540393,1.58166091,19029.0,19028.0,2.93767797]
[1673621540649,1.739827,19029.0,19028.0,2.93767797]
[1673621540901,1.45934412,19029.0,19028.0,2.93767797]
[1673621541148,0.52314966,19029.0,19028.0,3.61601888]
[1673621541397,0.52314966,19029.0,19028.0,2.93767797]
[1673621541673,1.46987619,19029.0,19028.0,2.93767797]
[1673621541926,1.68367086,19029.0,19028.0,1.79333697]
[1673621542177,1.21470174,19029.0,19028.0,0.29876097]
[1673621542418,1.31470174,19029.0,19028.0,0.29876097]
[1673621542671,1.16565338,19029.0,19028.0,0.29876097]
[1673621543674,1.16565338,19029.0,19028.0,0.27580378]
[1673621544184,1.16565338,19029.0,19022.0,1.15924796]
[1673621544185,0.64039999,19027.0,19022.0,1.15924796]
[1673621544435,0.4817,19025.0,19022.0,0.00386181]
[1673621544691,0.34935294,19024.0,19022.0,0.00386181]
[1673621544939,0.44940294,19023.0,19022.0,0.00386181]
[1673621545443,0.26955372,19024.0,19022.0,0.00386181]
[1673621545696,0.05280372,19023.0,19022.0,0.00386181]
[1673621545938,0.97503687,19023.0,19022.0,0.00386181]
[1673621546187,0.65823687,19023.0,19022.0,0.00386181]
[1673621546427,0.94973687,19023.0,19022.0,0.00386181]
[1673621546919,0.0002,19024.0,19022.0,0.00386181]
[1673621546920,0.0002,19024.0,19022.0,0.30678675]
[1673621547170,0.0002,19024.0,19022.0,0.91298915]
[1673621547421,0.0002,19024.0,19023.0,0.428343]
[1673621547665,0.0002,19024.0,19022.0,0.00386181]
[1673621547666,0.57370771,19024.0,19022.0,0.00386181]
[1673621547922,0.54916511,19023.0,19022.0,0.00386181]
[1673621548680,0.91734192,19023.0,19022.0,0.00386181]
[1673621548927,1.17049268,19023.0,19022.0,0.00386181]
[1673621549175,1.17899268,19023.0,19022.0,0.00386181]
[1673621550427,1.2164468,19023.0,19022.0,0.00386181]
[1673621550710,0.0002,19024.0,19022.0,0.30678675]
[1673621550950,0.0002,19024.0,19022.0,0.74306547]
[1673621551195,0.0002,19024.0,19022.0,0.81760545]
[1673621551444,0.52640371,19027.0,19023.0,0.31030494]
[1673621551704,0.47359999,19027.0,19024.0,0.21030494]
[1673621552200,0.4577972,19026.0,19023.0,1.2975]
[1673621552728,0.4577972,19026.0,19023.0,1.48760738]
[1673621553244,0.13280294,19026.0,19023.0,1.2975]
[1673621553492,0.5182053,19025.0,19023.0,1.1975]
[1673621553756,0.65080824,19025.0,19023.0,1.1975]
[1673621554061,0.3,19024.0,19022.0,0.00386181]
[1673621554788,0.74940294,19024.0,19022.0,0.00386181]
[1673621555039,0.00396682,19021.0,19018.0,2.00873704]
[1673621555289,0.13260294,19020.0,19019.0,0.51229774]
[1673621555534,0.13656976,19021.0,19019.0,0.51229774]
[1673621555784,0.3085,19022.0,19019.0,0.28269977]
[1673621555785,0.05246682,19022.0,19019.0,0.28269977]
[1673621556032,0.0085,19022.0,19020.0,0.54105196]
[1673621556280,0.0085,19022.0,19021.0,0.1]
[1673621556516,0.59690253,19022.0,19021.0,0.1]
[1673621557018,0.59690253,19022.0,19020.0,0.54105196]
[1673621557259,0.59690253,19022.0,19020.0,0.60515716]
[1673621557260,0.3,19021.0,19020.0,0.60515716]
[1673621557504,0.3,19021.0,19020.0,0.54105196]
[1673621557991,0.0085,19022.0,19020.0,0.54105196]
[1673621558249,0.0085,19022.0,19020.0,0.21030494]
[1673621558500,0.0085,19022.0,19021.0,0.328343]
[1673621558756,0.0085,19022.0,19021.0,0.94539374]
[1673621559010,0.0085,19022.0,19021.0,0.61705074]
[1673621560245,0.0085,19022.0,19021.0,0.06170507]
[1673621560495,0.0085,19022.0,19020.0,0.1653]
[1673621560763,0.0085,19022.0,19021.0,0.88958583]
[1673621561015,0.0085,19022.0,19021.0,0.53318693]
[1673621561530,0.0085,19022.0,19019.0,0.1]
[1673621561531,0.45998618,19022.0,19019.0,0.1]
[1673621561781,0.0085,19022.0,19020.0,0.52705182]
[1673621562041,0.0085,19022.0,19021.0,0.54773655]
[1673621562289,0.3002,19023.0,19021.0,0.54773655]
[1673621562543,0.3002,19023.0,19021.0,0.82281514]
[1673621562793,0.0002,19023.0,19021.0,0.54773655]
[1673621563041,1.149,19024.0,19022.0,0.1]
[1673621563325,1.149,19024.0,19023.0,0.21030494]
[1673621563563,1.149,19024.0,19022.0,0.1]
[1673621563564,0.73649646,19024.0,19022.0,0.1]
[1673621563819,1.36413034,19024.0,19020.0,0.6931148]
[1673621564069,0.13260294,19023.0,19020.0,0.6931148]
[1673621564359,0.13260294,19023.0,19020.0,0.5931148]
[1673621564595,0.13280294,19023.0,19020.0,0.5931148]
[1673621564829,0.43280294,19023.0,19020.0,0.5931148]
[1673621565090,0.3002,19023.0,19020.0,0.5931148]
[1673621565342,0.3002,19023.0,19018.0,1.48321102]
[1673621565343,0.58908476,19023.0,19018.0,1.48321102]
[1673621565594,0.38888476,19022.0,19018.0,1.38321102]
[1673621565842,0.3,19021.0,19018.0,1.53153212]
[1673621566095,0.3,19021.0,19020.0,0.01]
[1673621566595,0.295,19021.0,19020.0,0.01]
[1673621567095,0.7014538,19022.0,19020.0,0.01]
[1673621567355,0.58900485,19021.0,19020.0,0.01]
[1673621567629,0.60915274,19021.0,19020.0,0.00047316]
[1673621567930,0.56401112,19020.0,19017.0,0.69312977]
[1673621568153,0.69661406,19020.0,19017.0,0.69312977]
[1673621568388,0.3,19019.0,19017.0,0.69312977]
[1673621568632,0.3,19019.0,19016.0,0.10487495]
[1673621568882,0.42959495,19019.0,19016.0,0.75144423]
[1673621569132,0.42959495,19019.0,19016.0,0.94116631]
[1673621569378,0.75450547,19019.0,19016.0,0.65144423]
[1673621569629,0.91103626,19019.0,19016.0,0.65144423]
[1673621569887,0.50748099,19018.0,19016.0,0.52459381]
[1673621570402,0.3,19017.0,19016.0,0.52459381]
[1673621570655,0.15653079,19019.0,19016.0,0.69163085]
[1673621570931,0.30653079,19020.0,19018.0,0.57590857]
[1673621571176,0.15,19020.0,19018.0,0.78621351]
[1673621571427,0.15,19020.0,19018.0,0.65452992]
[1673621571677,0.54132837,19020.0,19018.0,0.65452992]
[1673621571924,0.15653079,19019.0,19018.0,0.65452992]
[1673621572167,1.01369023,19020.0,19018.0,0.57590857]
[1673621572406,0.91827633,19019.0,19016.0,0.68851129]
[1673621572654,0.45653079,19018.0,19016.0,0.68851129]
[1673621572908,0.58913373,19018.0,19016.0,0.00487495]
[1673621573144,0.69132837,19018.0,19016.0,0.69301939]
[1673621573398,0.45653079,19018.0,19017.0,0.62272256]
[1673621573903,0.45653079,19018.0,19016.0,0.10487495]
[1673621574151,0.15653079,19018.0,19017.0,0.68458987]
[1673621574408,0.39132837,19019.0,19017.0,0.76353635]
[1673621575403,0.3,19018.0,19017.0,0.76353635]
[1673621575639,0.45653079,19018.0,19017.0,0.76353635]
[1673621576149,0.45653079,19018.0,19017.0,0.68458987]
[1673621576639,0.69132837,19018.0,19016.0,0.00487495]
[1673621576889,0.69132837,19018.0,19015.0,1.14577661]
[1673621576890,0.22621946,19016.0,19015.0,1.14577661]
[1673621577141,0.22621946,19016.0,19015.0,0.12833256]
[1673621577392,0.22621946,19016.0,19015.0,0.09589661]
[1673621577917,0.22621946,19016.0,19015.0,0.00327661]
[1673621578190,0.22621946,19016.0,19015.0,0.63431261]
[1673621578191,0.52621946,19016.0,19015.0,0.63431261]
[1673621579673,0.22621946,19016.0,19015.0,0.61179499]
[1673621579919,0.22621946,19016.0,19015.0,0.1575544]
[1673621580175,0.77896178,19028.0,19016.0,0.22621]
[1673621580420,0.23565246,19023.0,19022.0,0.7890827]
[1673621580687,0.53030407,19028.0,19025.0,0.165]
[1673621580688,0.05503524,19028.0,19025.0,0.165]
[1673621580922,0.0563101,19028.0,19026.0,0.328343]
[1673621581175,0.01644332,19028.0,19024.0,0.46153702]
[1673621581686,0.01644332,19028.0,19026.0,0.1652]
[1673621581938,0.01644332,19028.0,19027.0,0.428343]
[1673621582197,0.01644332,19028.0,19027.0,1.62641766]
[1673621582447,0.01644332,19028.0,19027.0,1.41611272]
[1673621582691,0.01644332,19028.0,19027.0,1.57217653]
[1673621582692,4.332e-05,19028.0,19027.0,1.57217653]
[1673621583460,0.13264626,19028.0,19027.0,0.428343]
[1673621583715,0.13264626,19028.0,19027.0,0.328343]
[1673621583972,4.332e-05,19028.0,19026.0,0.1]
[1673621584462,4.332e-05,19028.0,19027.0,0.328343]
[1673621584961,4.332e-05,19028.0,19026.0,0.56153702]
[1673621584962,0.13264626,19028.0,19026.0,0.1]
[1673621585210,0.05284704,19028.0,19026.0,0.1]
[1673621585968,4.332e-05,19028.0,19026.0,0.1]
[1673621586733,0.13264626,19028.0,19024.0,0.56153702]
[1673621587026,0.13260294,19027.0,19024.0,0.1]
[1673621587523,0.65049556,19028.0,19024.0,0.1]
[1673621587780,0.59769184,19028.0,19025.0,0.77643214]
[1673621588077,0.59769184,19028.0,19026.0,0.1]
[1673621588773,0.56004332,19028.0,19024.0,0.1]
[1673621589019,0.78753683,19028.0,19024.0,0.1]
[1673621589263,0.03334666,19027.0,19024.0,0.1]
[1673621589541,0.03334666,19027.0,19024.0,0.62611129]
[1673621590281,0.03334666,19027.0,19024.0,0.1]
[1673621590535,0.00615968,19027.0,19022.0,0.1]
[1673621590778,0.76816922,19027.0,19020.0,0.1]
[1673621591025,0.7168,19026.0,19020.0,0.21030494]
[1673621591274,0.90330452,19026.0,19019.0,0.00534071]
[1673621591521,0.52640229,19025.0,19019.0,0.21564565]
[1673621591771,0.3,19024.0,19019.0,0.21564565]
[1673621592026,0.1,19023.0,19019.0,0.00534071]
[1673621592276,0.13174899,19023.0,19019.0,0.00534071]
[1673621592779,0.1,19023.0,19019.0,0.00534071]
[1673621593029,0.1,19023.0,19019.0,0.00515071]
[1673621593297,0.0085,19022.0,19019.0,0.00515071]
[1673621593550,0.6253,19022.0,19019.0,0.00515071]
[1673621593795,0.67810372,19022.0,19019.0,0.00515071]
[1673621594291,0.77708593,19022.0,19019.0,0.00515071]
[1673621594783,0.1,19021.0,19016.0,1.04273963]
[1673621595025,0.12970595,19021.0,19016.0,0.44758017]
[1673621595273,0.06130372,19020.0,19016.0,0.44758017]
[1673621595532,0.36130372,19020.0,19017.0,0.001]
[1673621595778,0.36130372,19020.0,19016.0,0.44758017]
[1673621596028,0.36130372,19020.0,19016.0,0.65788511]
[1673621596283,0.50330452,19021.0,19017.0,0.74510636]
[1673621596284,0.07427372,19021.0,19017.0,0.74510636]
[1673621596548,0.02970595,19021.0,19018.0,0.21030494]
[1673621596792,0.02970595,19021.0,19020.0,0.1]
[1673621597040,0.0002,19021.0,19020.0,0.1]
[1673621597286,0.03864534,19021.0,19020.0,0.1]
[1673621597533,0.0002,19021.0,19020.0,0.1]
[1673621598061,0.2602,19021.0,19020.0,0.749332]
[1673621598309,0.2602,19021.0,19020.0,0.63864794]
[1673621598557,0.2602,19021.0,19020.0,0.88552796]
[1673621599058,0.26,19021.0,19020.0,0.88552796]
[1673621600329,0.26,19021.0,19020.0,1.57877084]
[1673621600592,0.26,19021.0,19020.0,0.88552796]
[1673621600837,0.26,19021.0,19020.0,1.41220211]
[1673621601085,0.26,19021.0,19020.0,0.95501715]
[1673621601600,0.26,19021.0,19020.0,0.42897481]
[1673621601849,0.00017,19023.0,19021.0,0.62]
[1673621602108,0.00017,19023.0,19022.0,1.68597888]
[1673621602621,0.01752649,19026.0,19022.0,1.47567394]
[1673621602875,0.01752649,19026.0,19025.0,0.165]
[1673621603122,0.01752649,19026.0,19025.0,0.493343]
[1673621603360,0.01752649,19026.0,19025.0,0.593343]
[1673621604107,0.01752649,19026.0,19025.0,1.05084124]
[1673621604351,0.0002,19028.0,19026.0,0.1]
[1673621604597,0.0002,19028.0,19027.0,0.328343]
[1673621604852,0.0002,19028.0,19027.0,0.99001457]
[1673621605093,0.0002,19028.0,19027.0,0.428343]
[1673621605576,0.0002,19028.0,19027.0,1.09135343]
[1673621605853,0.0002,19028.0,19027.0,0.8792059]
[1673621606104,0.0002,19028.0,19027.0,1.0444059]
[1673621606356,0.01676245,19032.0,19027.0,1.0444059]
[1673621606611,0.01676245,19032.0,19028.0,0.98951084]
[1673621606879,0.01676245,19032.0,19029.0,0.428343]
[1673621607126,0.01676245,19032.0,19029.0,0.31030494]
[1673621607372,0.01676245,19032.0,19030.0,0.67792624]
[1673621607620,0.01676245,19032.0,19029.0,0.1]
[1673621608117,0.01676245,19032.0,19029.0,0.099928]
[1673621608336,0.01676245,19032.0,19030.0,0.51397141]
[1673621608627,0.01676245,19032.0,19031.0,0.1]
[1673621608873,0.00676245,19032.0,19031.0,0.1]
[1673621609364,0.00676245,19032.0,19030.0,0.51397141]
[1673621614928,0.05956617,19032.0,19028.0,0.69767488]
[1673621615427,0.05956617,19032.0,19029.0,0.21030494]
[1673621615672,0.00676245,19032.0,19029.0,0.21030494]
[1673621615914,0.00676245,19032.0,19030.0,0.1]
[1673621617936,0.07389073,19036.0,19030.0,0.31030494]
[1673621618197,0.01900443,19036.0,19032.0,0.00676244]
[1673621618460,0.01900443,19036.0,19033.0,0.21030494]
[1673621618961,0.01900443,19036.0,19034.0,0.21030494]
[1673621619462,0.01900443,19036.0,19032.0,0.00676244]
[1673621619988,0.01900443,19036.0,19032.0,0.21706738]
[1673621620236,0.01900443,19036.0,19032.0,0.00676244]
[1673621620476,0.01900443,19036.0,19033.0,0.6765919]
[1673621622241,0.01900443,19036.0,19032.0,0.00676244]
[1673621622526,0.3253,19035.0,19032.0,0.00676244]
[1673621622778,0.6168,19034.0,19032.0,0.00676244]
[1673621623032,0.0085,19033.0,19032.0,0.00676244]
[1673621623518,0.48783,19033.0,19032.0,0.00676244]
[1673621623764,0.78783,19033.0,19032.0,0.00676244]
[1673621624016,0.7253,19033.0,19032.0,0.00676244]
[1673621624270,0.77810372,19033.0,19032.0,0.00676244]
[1673621625284,0.06130372,19033.0,19032.0,0.00676244]
[1673621625548,0.05280372,19033.0,19032.0,0.00676244]
[1673621626296,0.90961679,19033.0,19032.0,0.00676244]
[1673621626558,1.30961679,19033.0,19032.0,0.00676244]
[1673621626811,1.25681307,19033.0,19032.0,0.00676244]
[1673621627064,1.2515327,19033.0,19032.0,6.244e-05]
[1673621627317,1.2515327,19033.0,19027.0,0.59915284]
[1673621627318,0.3168,19031.0,19027.0,0.59915284]
[1673621627556,0.7253,19030.0,19025.0,0.64117122]
[1673621628051,0.05280372,19029.0,19025.0,0.64117122]
[1673621628317,0.05280372,19029.0,19025.0,0.1]
[1673621629811,0.05280372,19029.0,19026.0,0.68712262]
[1673621630060,0.05280372,19029.0,19027.0,0.1]
[1673621630828,0.3253,19030.0,19027.0,0.1]
[1673621631074,0.37810372,19030.0,19027.0,0.31030494]
[1673621631327,0.37810372,19030.0,19027.0,0.1]
[1673621631569,0.41593409,19030.0,19024.0,0.10425138]
[1673621631823,0.41593409,19030.0,19024.0,0.88440465]
[1673621631824,0.1,19028.0,19024.0,0.88440465]
[1673621632073,0.45438488,19029.0,19025.0,0.68726925]
[1673621632321,0.37810372,19028.0,19024.0,0.00425138]
[1673621632574,0.37810372,19028.0,19024.0,0.52206499]
[1673621632848,0.37810372,19028.0,19024.0,0.00425138]
[1673621633103,0.96144047,19028.0,19024.0,0.00425138]
[1673621633359,0.3168,19026.0,19024.0,0.00425138]
[1673621633618,0.3,19027.0,19024.0,0.00425138]
[1673621633619,0.6253,19025.0,19024.0,0.00425138]
[1673621633858,0.67810372,19025.0,19024.0,0.00425138]
[1673621635138,0.7330022,19025.0,19024.0,0.00425138]
[1673621636393,0.7245022,19025.0,19024.0,0.00425138]
[1673621637880,0.66960372,19025.0,19024.0,0.00425138]
[1673621638385,0.67810372,19025.0,19024.0,0.00425138]
[1673621638887,0.6253,19025.0,19024.0,0.00425138]
[1673621639149,0.05280372,19026.0,19024.0,0.66561033]
[1673621639379,0.0002,19027.0,19024.0,0.79180527]
[1673621639623,0.0002,19027.0,19025.0,0.1]
[1673621640377,0.3168,19028.0,19025.0,0.1]
[1673621640907,0.52640229,19028.0,19024.0,0.00425138]
[1673621641145,0.3168,19026.0,19024.0,0.00425138]
[1673621641644,0.3,19025.0,19024.0,0.00425138]
[1673621642151,0.05297372,19028.0,19025.0,0.69898471]
[1673621642394,0.05297372,19028.0,19025.0,0.90928965]
[1673621642652,0.05297372,19028.0,19025.0,0.69898471]
[1673621642653,0.36977372,19028.0,19025.0,0.69898471]
[1673621642924,0.36977372,19028.0,19024.0,0.00425138]
[1673621643148,0.15679857,19027.0,19024.0,0.00425138]
[1673621643398,0.1,19026.0,19024.0,0.00425138]
[1673621643658,0.0085,19025.0,19024.0,0.00425138]
[1673621644809,0.06130372,19025.0,19024.0,0.00425138]
[1673621645428,0.0085,19025.0,19024.0,0.00425138]
[1673621645670,0.05280372,19027.0,19025.0,0.69924296]
[1673621645917,0.05300372,19027.0,19025.0,0.9095479]
[1673621646441,0.05300372,19027.0,19026.0,0.9621558]
[1673621646672,0.0002,19027.0,19026.0,0.78267956]
[1673621646915,0.0002,19027.0,19026.0,1.22544766]
[1673621647165,0.0002,19027.0,19026.0,0.78267956]
[1673621648172,0.36960372,19031.0,19026.0,1.22544766]
[1673621648457,0.36960372,19031.0,19027.0,0.65307304]
[1673621648711,0.39267875,19034.0,19028.0,0.65307304]
[1673621648712,0.70819314,19034.0,19028.0,0.65307304]
[1673621649013,0.47359857,19034.0,19029.0,1.23323174]
[1673621649214,0.47359857,19034.0,19031.0,0.1]
[1673621649443,0.01703695,19033.0,19031.0,0.31030494]
[1673621649735,0.01703695,19033.0,19031.0,0.1]
[1673621651476,0.01703695,19033.0,19029.0,1.3199]
[1673621651747,0.01703695,19033.0,19028.0,0.1548]
[1673621651748,0.3168,19032.0,19027.0,0.1]
[1673621652018,0.3168,19030.0,19027.0,0.70366926]
[1673621652272,0.3,19029.0,19028.0,0.61512751]
[1673621652516,0.3,19029.0,19026.0,0.65968089]
[1673621652517,0.3085,19029.0,19026.0,0.55968089]
[1673621652765,0.36130372,19029.0,19026.0,0.55968089]
[1673621653050,0.36110372,19029.0,19026.0,0.55968089]
[1673621653270,0.36110372,19029.0,19026.0,0.00019]
[1673621653518,0.05280372,19028.0,19025.0,1.1673]
[1673621653773,0.0085,19027.0,19025.0,1.1673]
[1673621654027,0.0085,19027.0,19025.0,1.7053079]
[1673621654276,0.3085,19027.0,19025.0,1.7053079]
[1673621654529,0.67810372,19027.0,19024.0,0.00425138]
[1673621654771,1.0190888,19027.0,19024.0,0.00425138]
[1673621655014,0.4716,19026.0,19024.0,0.00425138]
[1673621655272,0.6168,19025.0,19024.0,0.00425138]
[1673621655527,0.67810372,19025.0,19024.0,0.00425138]
[1673621655787,0.67810372,19025.0,19024.0,0.00417441]
[1673621655788,0.77810372,19025.0,19024.0,0.00417441]
[1673621656138,1.32299686,19025.0,19024.0,0.00417441]
[1673621656277,1.08840229,19025.0,19024.0,0.00417441]
[1673621656759,1.32299686,19025.0,19024.0,0.00417441]
[1673621657024,1.47984373,19025.0,19024.0,0.00417441]
[1673621657271,0.67810372,19025.0,19024.0,0.00417441]
[1673621657523,0.36960372,19025.0,19024.0,0.00417441]
[1673621658544,0.05280372,19025.0,19024.0,0.85817752]
[1673621658796,0.70850159,19027.0,19024.0,0.85817752]
[1673621658797,0.0002,19027.0,19025.0,0.1]
[1673621659046,0.05280372,19027.0,19026.0,0.59046814]
[1673621659305,0.05280372,19027.0,19026.0,0.80077308]
[1673621659549,0.05280372,19027.0,19026.0,0.59046814]
[1673621659806,0.47370702,19030.0,19025.0,0.1]
[1673621659807,0.15690702,19029.0,19025.0,0.1]
[1673621660056,0.15690702,19028.0,19025.0,0.31030494]
[1673621660300,0.15690702,19028.0,19025.0,0.1]
[1673621660796,0.45690702,19028.0,19024.0,0.71748909]
[1673621661042,0.15690702,19027.0,19024.0,0.10417441]
[1673621661285,0.45690702,19027.0,19024.0,0.00417441]
[1673621661788,0.50971074,19027.0,19024.0,0.00417441]
[1673621662027,0.15690702,19026.0,19024.0,0.00417441]
[1673621662253,0.45690702,19026.0,19024.0,0.00417441]
[1673621662538,0.20971074,19026.0,19024.0,0.00417441]
[1673621663784,0.29372636,19026.0,19024.0,0.00417441]
[1673621664033,0.3,19025.0,19024.0,0.00417441]
[1673621664544,0.35280372,19025.0,19024.0,0.00417441]
[1673621665287,0.50971074,19025.0,19024.0,0.00417441]
[1673621665537,0.50471074,19025.0,19024.0,0.00417441]
[1673621666311,0.98674916,19025.0,19024.0,0.00417441]
[1673621666555,1.37942791,19025.0,19024.0,0.00417441]
[1673621667306,2.05992189,19025.0,19024.0,0.00417441]
[1673621667551,1.97706488,19025.0,19024.0,0.00417441]
[1673621667807,1.97706488,19025.0,19024.0,4.1e-07]
[1673621668021,0.3168,19023.0,19020.0,0.00063181]
[1673621669318,0.67810372,19021.0,19020.0,0.00063181]
[1673621670322,0.67810372,19021.0,19019.0,0.00452354]
[1673621670323,0.4168,19020.0,19019.0,0.00452354]
[1673621670574,0.88245371,19020.0,19019.0,0.00452354]
[1673621670812,1.27536759,19020.0,19019.0,5.4e-07]
[1673621671062,1.32817131,19020.0,19019.0,5.4e-07]
[1673621671798,1.22817131,19020.0,19019.0,5.4e-07]
[1673621672042,0.91384834,19020.0,19019.0,5.4e-07]
[1673621672289,1.22817131,19020.0,19019.0,5.4e-07]
[1673621672533,0.83513442,19020.0,19019.0,5.4e-07]
[1673621672794,0.05280372,19020.0,19019.0,0.83866726]
[1673621673050,0.00017,19022.0,19019.0,0.83866726]
[1673621673310,0.13016895,19024.0,19020.0,0.1]
[1673621673562,0.13016895,19023.0,19020.0,0.21030494]
[1673621673806,0.3168,19022.0,19020.0,0.21030494]
[1673621674066,0.05280372,19024.0,19021.0,0.1]
[1673621674311,0.05280372,19024.0,19021.0,0.31030494]
[1673621674564,0.36712669,19024.0,19020.0,0.1]
[1673621674812,0.05280372,19024.0,19021.0,0.69508226]
[1673621675051,0.36960372,19024.0,19021.0,0.9053872]
[1673621675343,0.4245022,19024.0,19021.0,0.69508226]
[1673621676826,0.3,19023.0,19020.0,9.1]
[1673621677334,0.3,19023.0,19021.0,0.70293342]
[1673621678310,0.37169848,19024.0,19021.0,0.70293342]
[1673621678554,0.37169848,19024.0,19021.0,0.91323836]
[1673621678815,0.37169848,19024.0,19021.0,0.80293342]
[1673621679319,0.40888833,19024.0,19021.0,0.80293342]
[1673621679587,0.37169848,19024.0,19021.0,0.80293342]
[1673621679831,0.3,19023.0,19021.0,0.80293342]
[1673621680079,0.3,19023.0,19022.0,0.60026463]
[1673621680329,0.37169848,19024.0,19022.0,0.60026463]
[1673621680592,0.05489848,19024.0,19022.0,0.60026463]
[1673621680840,0.3168,19026.0,19023.0,0.1]
[1673621681080,0.3168,19026.0,19023.0,0.7495036]
[1673621681336,0.3168,19026.0,19023.0,0.31030494]
[1673621681849,0.3168,19026.0,19023.0,0.1]
[1673621682358,0.45220619,19026.0,19023.0,0.1]
[1673621682606,0.3,19025.0,19024.0,0.66853866]
[1673621683598,0.3,19025.0,19022.0,0.1]
[1673621683839,0.15694989,19024.0,19023.0,0.54204388]
[1673621684334,0.9619601,19025.0,19023.0,0.54204388]
[1673621684579,0.1569655,19024.0,19021.0,0.1]
[1673621684829,0.26257294,19024.0,19022.0,0.58074248]
[1673621685098,0.3,19023.0,19022.0,0.58074248]
[1673621686823,0.66197571,19024.0,19022.0,0.58074248]
[1673621687103,0.26960372,19024.0,19022.0,0.79104742]
[1673621687345,0.26960372,19024.0,19023.0,0.1]
[1673621687844,0.26960372,19024.0,19023.0,0.6152943]
[1673621688093,0.42656922,19024.0,19023.0,0.6152943]
[1673621688339,0.30709557,19024.0,19023.0,0.6152943]
[1673621688599,0.4569655,19024.0,19023.0,0.6152943]
[1673621689347,0.4569655,19024.0,19023.0,0.72559924]
[1673621689348,0.1569655,19024.0,19023.0,0.72559924]
[1673621689601,0.1565345,19026.0,19023.0,0.84824794]
[1673621689855,0.29050497,19027.0,19024.0,1.07474907]
[1673621690144,0.0002,19027.0,19025.0,1.12904907]
[1673621690394,0.0002,19027.0,19026.0,1.04106693]